bitfinex/quotes_BTCUSD_20240902
["timestamp","ask_amount","ask_price","bid_price","bid_amount"]
[1725288418038,0.169998,58824.0,58821.0,0.02184274]
[1725288418277,0.170002,58823.0,58821.0,0.02184274]
[1725288419401,0.169999,58824.0,58821.0,0.19184874]
[1725288419627,0.170001,58823.0,58821.0,0.02184274]
[1725288420328,0.170001,58823.0,58821.0,0.02084274]
[1725288420559,0.339989,58826.0,58821.0,0.02084274]
[1725288420792,0.17,58824.0,58821.0,0.20484874]
[1725288421037,0.17,58824.0,58821.0,0.03484274]
[1725288421269,0.170001,58823.0,58821.0,0.03484274]
[1725288421533,0.169998,58824.0,58821.0,0.17884874]
[1725288421766,0.169998,58824.0,58821.0,0.01984274]
[1725288421993,0.170001,58823.0,58821.0,0.02884274]
[1725288422455,0.02665997,58827.0,58821.0,0.01984274]
[1725288422456,0.339985,58826.0,58821.0,0.01984274]
[1725288422723,0.078,58876.0,58858.0,1.1893]
[1725288423191,0.078,58876.0,58854.0,0.1442]
[1725288423192,0.088,58876.0,58855.0,0.169906]
[1725288423197,0.339776,58863.0,58858.0,0.0086956]
[1725288423450,0.339781,58862.0,58858.0,0.0086956]
[1725288423711,0.339781,58862.0,58850.0,0.442]
[1725288423712,0.0115827,58865.0,58853.0,0.1416]
[1725288423981,0.0115827,58865.0,58858.0,0.00661332]
[1725288424227,0.0115827,58865.0,58858.0,0.1699]
[1725288424472,0.0115827,58865.0,58858.0,0.52231332]
[1725288424708,0.0115827,58865.0,58858.0,0.51631332]
[1725288425453,0.0115827,58865.0,58858.0,1.39005341]
[1725288425701,0.0115827,58865.0,58858.0,1.66185341]
[1725288425947,0.0115827,58865.0,58858.0,1.32205341]
[1725288426191,0.0115827,58865.0,58858.0,1.33405341]
[1725288426422,0.0115827,58865.0,58858.0,0.99425341]
[1725288426654,0.0115827,58865.0,58858.0,0.80011332]
[1725288426900,0.0115827,58865.0,58858.0,0.46031332]
[1725288427130,0.0115827,58865.0,58858.0,0.80211332]
[1725288427583,0.0115827,58865.0,58858.0,1.12791332]
[1725288427810,0.0115827,58865.0,58858.0,1.33605341]
[1725288428733,0.0115827,58865.0,58858.0,0.46231332]
[1725288429201,0.0115827,58865.0,58858.0,0.78811332]
[1725288429439,0.0115827,58865.0,58858.0,1.12791332]
[1725288429659,0.0115827,58865.0,58858.0,1.33505341]
[1725288430115,0.0115827,58865.0,58858.0,1.33605341]
[1725288430349,0.0115827,58865.0,58858.0,1.32205341]
[1725288430583,0.0115827,58865.0,58858.0,2.02585341]
[1725288430899,0.0115827,58865.0,58858.0,2.03985341]
[1725288431131,0.0115827,58865.0,58858.0,1.14191332]
[1725288431363,0.0115827,58865.0,58858.0,1.15591332]
[1725288431817,0.0115827,58865.0,58858.0,1.14191332]
[1725288432074,0.0115827,58865.0,58858.0,0.80211332]
[1725288432307,0.0115827,58865.0,58858.0,1.14091332]
[1725288432755,0.0115827,58865.0,58858.0,1.12791332]
[1725288432993,0.0115827,58865.0,58858.0,1.33605341]
[1725288433226,0.0115827,58865.0,58858.0,2.02585341]
[1725288433455,0.0115827,58865.0,58858.0,2.03985341]
[1725288434386,0.0115827,58865.0,58858.0,2.02585341]
[1725288434644,0.0115827,58865.0,58858.0,2.03985341]
[1725288434879,0.0115827,58865.0,58858.0,2.06285341]
[1725288435109,0.0115827,58865.0,58858.0,1.67205341]
[1725288435344,0.0115827,58865.0,58858.0,1.68605341]
[1725288435576,0.0115827,58865.0,58858.0,1.70005341]
[1725288436052,0.0115827,58865.0,58858.0,1.68605341]
[1725288436500,0.0115827,58865.0,58858.0,1.70005341]
[1725288438119,0.0115827,58865.0,58858.0,2.03985341]
[1725288438370,0.0115827,58865.0,58858.0,2.13539298]
[1725288438624,0.01147188,58865.0,58864.0,0.849415]
[1725288438855,0.01147188,58865.0,58864.0,1.18385509]
[1725288439107,0.01147188,58865.0,58864.0,1.648325]
[1725288439341,0.01147188,58865.0,58864.0,2.258559]
[1725288439599,0.0821,58892.0,58872.0,0.6178]
[1725288439600,0.339624,58889.0,58872.0,0.6178]
[1725288439829,0.0921,58904.0,58878.0,1.19345209]
[1725288439830,0.02663209,58881.0,58878.0,1.19345209]
[1725288440057,0.169824,58885.0,58878.0,1.20003783]
[1725288440291,0.169819,58886.0,58878.0,1.20003783]
[1725288440746,0.339644,58886.0,58878.0,0.32652774]
[1725288440993,0.169826,58884.0,58878.0,0.51611274]
[1725288441219,0.169828,58883.0,58878.0,0.19042774]
[1725288441674,0.169828,58883.0,58878.0,0.17642774]
[1725288441910,0.169832,58882.0,58878.0,0.19042774]
[1725288442155,0.169829,58883.0,58878.0,0.17642774]
[1725288442427,0.169829,58883.0,58878.0,0.51611274]
[1725288442884,0.339661,58883.0,58878.0,0.19042774]
[1725288443121,0.339648,58885.0,58878.0,0.19042774]
[1725288443344,0.169832,58882.0,58878.0,0.17642774]
[1725288443587,0.170239,58879.0,58878.0,0.00658574]
[1725288443817,0.931697,58879.0,58878.0,0.00658574]
[1725288444047,0.931697,58879.0,58869.0,0.169867]
[1725288444048,0.339698,58876.0,58869.0,0.169867]
[1725288444285,0.0004,58879.0,58874.0,0.50540786]
[1725288444533,0.0004,58879.0,58873.0,0.35]
[1725288444534,0.1004,58879.0,58878.0,1.54335209]
[1725288444786,0.1004,58879.0,58878.0,1.89703709]
[1725288445050,0.1004,58879.0,58878.0,1.38377915]
[1725288445283,0.1004,58879.0,58878.0,1.35577915]
[1725288445529,0.1004,58879.0,58878.0,0.85577915]
[1725288445766,0.609918,58879.0,58878.0,0.00656715]
[1725288446005,0.609918,58879.0,58878.0,0.85577915]
[1725288446006,0.1004,58879.0,58878.0,0.85577915]
[1725288446257,0.1004,58879.0,58878.0,1.964897]
[1725288446492,0.1004,58879.0,58878.0,2.08546332]
[1725288446970,0.1004,58879.0,58878.0,2.43514832]
[1725288447211,0.1004,58879.0,58878.0,2.45814832]
[1725288447439,0.1004,58879.0,58878.0,2.61260909]
[1725288447677,0.1004,58879.0,58878.0,2.62660909]
[1725288447908,0.1004,58879.0,58878.0,2.44414832]
[1725288448135,0.1004,58879.0,58878.0,2.45814832]
[1725288448928,0.1004,58879.0,58878.0,2.11846332]
[1725288449169,0.02662799,58896.0,58895.0,1.48258]
[1725288449401,0.02662799,58896.0,58895.0,1.988267]
[1725288449622,0.339515,58908.0,58898.0,0.509355]
[1725288449861,0.339533,58905.0,58895.0,0.62283628]
[1725288450135,0.16978,58900.0,58898.0,0.00653313]
[1725288450374,0.339533,58905.0,58897.0,0.169786]
[1725288450605,0.169791,58896.0,58891.0,0.169803]
[1725288450833,0.169791,58896.0,58892.0,0.1698]
[1725288451055,0.169795,58895.0,58889.0,0.85]
[1725288451282,0.339583,58896.0,58890.0,0.1]
[1725288451521,0.1208,58899.0,58884.0,0.04916499]
[1725288451755,0.0846,58898.0,58884.0,0.04916499]
[1725288452027,0.16982,58886.0,58884.0,0.04916499]
[1725288452262,0.0004,58899.0,58885.0,0.19414009]
[1725288452522,0.339588,58895.0,58888.0,0.169811]
[1725288452800,0.339588,58895.0,58886.0,0.15159574]
[1725288452801,0.339583,58896.0,58890.0,0.169806]
[1725288453033,0.0004,58899.0,58891.0,0.00339578]
[1725288453034,0.169789,58897.0,58891.0,0.00339578]
[1725288453268,0.0004,58899.0,58898.0,0.519785]
[1725288453510,0.0004,58899.0,58898.0,1.006555]
[1725288453989,0.0004,58899.0,58898.0,1.35265798]
[1725288454227,0.0004,58899.0,58898.0,1.37565798]
[1725288454463,0.0004,58919.0,58906.0,0.16976]
[1725288454707,0.0004,58919.0,58904.0,0.169766]
[1725288454708,0.339487,58913.0,58904.0,0.169766]
[1725288454944,0.509273,58908.0,58907.0,0.00651899]
[1725288455190,0.339497,58911.0,58902.0,0.5]
[1725288455438,0.0004,58919.0,58902.0,0.5]
[1725288455439,0.339502,58910.0,58902.0,0.5]
[1725288455675,0.16976,58907.0,58906.0,0.004]
[1725288455924,0.339502,58910.0,58906.0,0.004]
[1725288456152,0.169757,58908.0,58906.0,0.01049828]
[1725288456402,0.1,58913.0,58906.0,0.01049828]
[1725288456403,0.339495,58911.0,58906.0,0.004]
[1725288456650,0.454456,58918.0,58907.0,0.00649723]
[1725288456651,0.115,58918.0,58907.0,0.00649723]
[1725288456878,0.169753,58910.0,58907.0,0.00989202]
[1725288457117,0.169753,58910.0,58907.0,0.00649723]
[1725288457397,0.0866,58923.0,58907.0,0.00649723]
[1725288457398,0.169716,58922.0,58917.0,0.169727]
[1725288457642,0.169716,58922.0,58918.0,0.169727]
[1725288457903,0.169714,58923.0,58918.0,0.17632519]
[1725288458145,0.3510027,58924.0,58918.0,0.00659819]
[1725288458146,0.170124,58919.0,58918.0,0.00659819]
[1725288458373,0.509573,58919.0,58918.0,0.00659819]
[1725288458610,0.0004,58919.0,58911.0,0.272]
[1725288458836,0.169734,58916.0,58911.0,0.441747]
[1725288459079,0.0004,58919.0,58911.0,0.441747]
[1725288459080,0.169736,58915.0,58912.0,0.00660119]
[1725288459327,0.0004,58919.0,58912.0,0.00660119]
[1725288459328,0.848707,58913.0,58912.0,0.00660119]
[1725288459787,1.18819,58913.0,58912.0,0.00660119]
[1725288460013,0.84878,58908.0,58907.0,0.04905934]
[1725288460488,0.84878,58908.0,58907.0,0.00660644]
[1725288460722,1.188292,58908.0,58907.0,0.00660644]
[1725288460946,0.169767,58904.0,58901.0,0.1508]
[1725288461175,0.509302,58904.0,58901.0,0.1508]
[1725288461396,0.848837,58904.0,58897.0,0.331]
[1725288461645,0.509355,58898.0,58897.0,0.331]
[1725288461867,0.848925,58898.0,58897.0,0.331]
[1725288462110,1.188495,58898.0,58890.0,0.1416]
[1725288462349,0.339522,58907.0,58884.0,0.1416]
[1725288462350,0.169822,58885.0,58884.0,0.1416]
[1725288462581,0.1171,58897.0,58883.0,0.331]
[1725288462582,0.169821,58886.0,58883.0,0.331]
[1725288462833,0.849125,58884.0,58883.0,0.331]
[1725288463777,0.169845,58877.0,58876.0,0.1446]
[1725288464004,0.33968,58879.0,58876.0,0.1446]
[1725288464245,0.339675,58880.0,58876.0,0.1446]
[1725288464479,0.339675,58880.0,58873.0,0.3396]
[1725288464480,0.169845,58877.0,58873.0,0.3396]
[1725288464938,0.169846,58877.0,58872.0,0.169858]
[1725288465173,0.339681,58879.0,58870.0,0.1426]
[1725288465434,0.121,58883.0,58870.0,0.1426]
[1725288465647,0.509587,58871.0,58870.0,0.1426]
[1725288465868,0.169862,58871.0,58870.0,0.1426]
[1725288466097,0.169867,58870.0,58866.0,0.1397]
[1725288466334,0.169874,58867.0,58866.0,0.1397]
[1725288466566,0.169874,58867.0,58866.0,0.1]
[1725288466567,0.509622,58867.0,58866.0,0.1]
[1725288466970,0.339748,58867.0,58863.0,0.331]
[1725288467166,0.169881,58865.0,58863.0,0.331]
[1725288467426,0.169877,58866.0,58863.0,0.331]
[1725288467651,0.169868,58870.0,58865.0,0.169878]
[1725288468131,0.339739,58869.0,58863.0,0.331]
[1725288468334,0.339739,58869.0,58863.0,0.344]
[1725288468335,0.169877,58867.0,58863.0,0.344]
[1725288468560,0.169877,58867.0,58863.0,0.331]
[1725288468783,0.169876,58867.0,58864.0,0.00833045]
[1725288469013,0.169871,58868.0,58865.0,0.01]
[1725288469240,0.339725,58872.0,58864.0,0.00833045]
[1725288469525,0.339699,58876.0,58866.0,0.00832765]
[1725288469526,0.339714,58873.0,58866.0,0.00832765]
[1725288469728,0.169875,58867.0,58865.0,0.00835794]
[1725288469936,0.33972,58872.0,58863.0,0.331]
[1725288470141,0.169883,58864.0,58863.0,0.331]
[1725288470355,0.509649,58864.0,58863.0,0.331]
[1725288470988,0.24158179,58873.0,58863.0,0.331]
[1725288471204,0.02663573,58877.0,58863.0,0.331]
[1725288471205,0.169883,58864.0,58863.0,0.331]
[1725288471416,0.26821752,58877.0,58863.0,0.345]
[1725288471620,0.16988,58865.0,58863.0,0.331]
[1725288471857,0.169883,58864.0,58863.0,0.331]
[1725288472323,0.169883,58864.0,58863.0,0.345]
[1725288472576,0.02663573,58877.0,58868.0,0.35]
[1725288472802,0.1105,58890.0,58870.0,0.5]
[1725288473013,0.169827,58884.0,58871.0,0.0033965]
[1725288473225,0.1105,58890.0,58870.0,0.5]
[1725288473226,0.169823,58885.0,58870.0,0.5493543]
[1725288473497,0.16982,58886.0,58870.0,0.5493543]
[1725288473705,0.169823,58885.0,58879.0,0.339679]
[1725288473915,0.169821,58886.0,58881.0,0.169832]
[1725288474123,0.1,58887.0,58879.0,0.339679]
[1725288474335,0.1,58887.0,58873.0,0.339711]
[1725288474336,0.169823,58885.0,58881.0,0.169832]
[1725288474772,0.269818,58887.0,58881.0,0.339666]
[1725288474984,0.16982,58886.0,58881.0,0.339666]
[1725288475197,0.16982,58886.0,58881.0,0.343666]
[1725288475418,0.16982,58886.0,58879.0,0.339674]
[1725288475419,0.169822,58885.0,58882.0,0.16983]
[1725288475640,0.1,58887.0,58882.0,0.169829]
[1725288475881,0.1,58887.0,58877.0,0.339688]
[1725288476103,0.1,58887.0,58871.0,0.50540786]
[1725288476104,0.1,58887.0,58878.0,0.339685]
[1725288476324,0.1,58887.0,58885.0,0.169821]
[1725288476527,0.1,58887.0,58881.0,0.005]
[1725288476732,0.1,58887.0,58882.0,0.339661]
[1725288476950,0.1,58887.0,58881.0,0.005]
[1725288476951,0.1,58887.0,58884.0,0.169824]
[1725288477833,0.269818,58887.0,58882.0,0.169828]
[1725288478068,0.169821,58886.0,58882.0,0.17283]
[1725288478320,0.24158179,58885.0,58870.0,0.3803543]
[1725288478575,0.169858,58873.0,58870.0,0.55476216]
[1725288478826,0.169857,58873.0,58870.0,0.0493543]
[1725288479081,0.24158179,58880.0,58865.0,0.1511]
[1725288479281,0.169861,58872.0,58867.0,0.169872]
[1725288479509,0.169856,58874.0,58867.0,0.339746]
[1725288479773,0.58125779,58880.0,58867.0,0.339746]
[1725288479774,0.58125779,58880.0,58867.0,0.169873]
[1725288480023,0.169861,58872.0,58868.0,0.169871]
[1725288480525,0.02663357,58877.0,58865.0,0.1511]
[1725288480773,0.02663357,58877.0,58872.0,0.169858]
[1725288480774,0.169848,58876.0,58872.0,0.169858]
[1725288481074,0.02663357,58877.0,58871.0,0.339723]
[1725288481281,0.169845,58878.0,58873.0,0.00849733]
[1725288481542,0.339667,58882.0,58873.0,0.00849733]
[1725288481792,0.169831,58882.0,58878.0,0.169842]
[1725288482042,0.195,58890.0,58879.0,0.169839]
[1725288482043,0.169829,58883.0,58879.0,0.169839]
[1725288482272,0.169829,58883.0,58879.0,0.17833821]
[1725288482504,0.169825,58884.0,58879.0,0.17833821]
[1725288482766,0.34158179,58887.0,58880.0,0.2587]
[1725288482997,0.169823,58885.0,58880.0,0.77670381]
[1725288483222,0.269817,58887.0,58882.0,0.169829]
[1725288483444,0.16982,58886.0,58882.0,0.169829]
[1725288483670,0.16982,58886.0,58883.0,0.00849361]
[1725288483914,0.169822,58885.0,58883.0,0.00849361]
[1725288484132,0.169822,58885.0,58881.0,0.169833]
[1725288484370,0.439638,58887.0,58884.0,0.00849221]
[1725288484371,0.269818,58887.0,58884.0,0.00849221]
[1725288484606,0.16982,58886.0,58882.0,0.16983]
[1725288484779,0.16982,58886.0,58885.0,0.00849081]
[1725288485041,0.269816,58887.0,58883.0,0.169826]
[1725288485257,0.269816,58887.0,58885.0,0.00849081]
[1725288485444,0.269816,58887.0,58884.0,0.00849221]
[1725288485719,0.1,58887.0,58886.0,0.17830841]
[1725288485932,0.1,58887.0,58886.0,0.849097]
[1725288486144,0.1,58887.0,58886.0,0.51581027]
[1725288486359,0.1,58887.0,58886.0,0.85544927]
[1725288487287,0.1,58887.0,58886.0,1.33188827]
[1725288487721,0.1,58887.0,58886.0,1.43188827]
[1725288488643,0.1,58887.0,58886.0,1.44588827]
[1725288490916,0.1,58887.0,58886.0,1.55818827]
[1725288491379,0.1,58887.0,58886.0,0.15715227]
[1725288491591,0.1,58887.0,58886.0,0.02035227]
[1725288491822,0.1,58887.0,58886.0,1.20908827]
[1725288492066,0.1,58887.0,58886.0,1.35838827]
[1725288492762,0.1,58887.0,58886.0,1.01874927]
[1725288492996,0.1,58887.0,58886.0,1.35838827]
[1725288493631,0.1,58887.0,58886.0,0.52981027]
[1725288493861,0.1,58887.0,58886.0,0.02035227]
[1725288493862,0.269816,58887.0,58886.0,0.02035227]
[1725288494063,0.1,58887.0,58886.0,0.02035227]
[1725288494271,0.1,58887.0,58881.0,0.489064]
[1725288494272,0.169821,58886.0,58881.0,0.319232]
[1725288494486,0.269816,58887.0,58886.0,0.00679566]
[1725288494694,0.269816,58887.0,58876.0,0.802891]
[1725288494695,0.1,58887.0,58877.0,0.1475]
[1725288494908,0.439637,58887.0,58878.0,0.1]
[1725288495148,0.439637,58887.0,58878.0,0.269841]
[1725288495399,0.0772,58886.0,58872.0,0.1462]
[1725288495624,0.509587,58871.0,58870.0,0.0495197]
[1725288496083,0.1097,58880.0,58864.0,0.1462]
[1725288496084,0.169876,58867.0,58864.0,0.1462]
[1725288496294,0.169876,58867.0,58863.0,0.169884]
[1725288496520,0.1097,58880.0,58865.0,0.35]
[1725288496732,0.169854,58874.0,58869.0,0.169867]
[1725288496944,0.169854,58874.0,58870.0,0.169865]
[1725288497201,0.169854,58874.0,58868.0,0.33974]
[1725288497202,0.33971,58874.0,58864.0,0.1487]
[1725288497422,0.169878,58866.0,58864.0,0.1487]
[1725288497636,0.1097,58880.0,58864.0,0.1487]
[1725288497848,0.169867,58870.0,58866.0,0.169876]
[1725288498497,0.001,58871.0,58870.0,0.001]
[1725288499018,0.001,58871.0,58870.0,0.5129932]
[1725288499237,0.001,58871.0,58870.0,0.997127]
[1725288499482,0.1103,58886.0,58875.0,0.339702]
[1725288499687,0.1103,58886.0,58870.0,0.1478]
[1725288499688,0.1103,58886.0,58873.0,0.169856]
[1725288499896,0.169848,58876.0,58872.0,0.169858]
[1725288500106,0.339648,58885.0,58873.0,0.169855]
[1725288500107,0.169846,58877.0,58873.0,0.169855]
[1725288500333,0.08443379,58931.0,58874.0,0.339705]
[1725288500334,0.339632,58888.0,58874.0,0.339705]
[1725288500595,0.269818,58887.0,58883.0,0.169826]
[1725288500799,0.1,58887.0,58884.0,0.2619]
[1725288501051,0.1,58887.0,58886.0,0.509458]
[1725288501304,0.1,58887.0,58886.0,1.110997]
[1725288501752,0.1,58887.0,58886.0,1.11780258]
[1725288502937,0.1,58887.0,58886.0,1.13080258]
[1725288502938,0.101,58887.0,58886.0,1.13080258]
[1725288504736,0.101,58887.0,58886.0,1.47044158]
[1725288504963,0.101,58887.0,58886.0,1.13080258]
[1725288506033,0.101,58887.0,58886.0,1.47044158]
[1725288506255,0.101,58887.0,58886.0,1.13080258]
[1725288506509,0.101,58887.0,58886.0,1.47044158]
[1725288506758,0.101,58887.0,58886.0,1.93854857]
[1725288506963,0.101,58887.0,58886.0,2.46864834]
[1725288506964,0.07738097,58887.0,58886.0,2.46864834]
[1725288507392,0.001,58887.0,58886.0,2.46864834]
[1725288507636,0.001,58887.0,58886.0,2.46664834]
[1725288507884,0.001,58887.0,58886.0,2.46864834]
[1725288508589,0.001,58887.0,58886.0,2.29818757]
[1725288509035,0.001,58887.0,58886.0,2.30018757]
[1725288509241,0.001,58887.0,58886.0,2.29818757]
[1725288509884,0.001,58887.0,58886.0,1.93854857]
[1725288510542,0.001,58887.0,58886.0,1.92854857]
[1725288510760,0.001,58887.0,58886.0,1.90554857]
[1725288510976,0.001,58887.0,58886.0,1.13080258]
[1725288511443,0.001,58887.0,58886.0,0.01980558]
[1725288511658,0.170816,58887.0,58886.0,0.01980558]
[1725288512123,0.510449,58887.0,58886.0,0.01980558]
[1725288512360,0.850082,58887.0,58886.0,0.01980558]
[1725288512578,0.510449,58887.0,58886.0,0.013]
[1725288512822,0.170816,58887.0,58886.0,0.013]
[1725288513079,0.001,58887.0,58886.0,0.18958957]
[1725288513287,0.001,58887.0,58886.0,0.52922857]
[1725288516148,0.001,58887.0,58886.0,0.01977057]
[1725288516368,0.001,58887.0,58886.0,0.18958957]
[1725288517035,0.170816,58887.0,58886.0,0.01977057]
[1725288518123,0.850082,58887.0,58886.0,0.01977057]
[1725288518620,0.850082,58887.0,58886.0,0.013]
[1725288519064,0.169829,58883.0,58879.0,0.169839]
[1725288519510,0.169831,58882.0,58880.0,0.00677777]
[1725288519735,0.169834,58881.0,58877.0,0.169845]
[1725288520152,0.339662,58883.0,58876.0,0.339693]
[1725288520377,0.169835,58881.0,58877.0,0.169844]
[1725288520600,0.169831,58882.0,58878.0,0.169842]
[1725288520816,0.169831,58882.0,58880.0,0.007]
[1725288521051,0.169831,58882.0,58878.0,0.169842]
[1725288521283,0.1,58890.0,58879.0,0.339676]
[1725288521496,0.169812,58889.0,58885.0,0.16982]
[1725288521720,0.1,58890.0,58880.0,0.00339634]
[1725288521934,0.1,58890.0,58881.0,0.1493]
[1725288522367,0.1,58890.0,58883.0,0.339656]
[1725288522574,0.1,58890.0,58887.0,0.169815]
[1725288523003,0.1,58890.0,58889.0,0.169811]
[1725288523689,0.1,58890.0,58889.0,0.849055]
[1725288523917,0.1,58890.0,58889.0,0.509433]
[1725288524371,0.1,58890.0,58889.0,0.178811]
[1725288524823,0.1,58890.0,58889.0,0.009]
[1725288525492,0.1,58890.0,58889.0,0.178811]
[1725288526387,0.1,58890.0,58889.0,0.009]
[1725288526604,0.1,58890.0,58889.0,0.178811]
[1725288527500,0.1,58890.0,58889.0,0.009]
[1725288527712,0.1,58890.0,58889.0,0.178811]
[1725288527925,0.1,58890.0,58889.0,0.009]
[1725288528151,0.1,58890.0,58889.0,0.178811]
[1725288528378,0.1,58890.0,58889.0,0.009]
[1725288528804,0.1,58890.0,58889.0,0.01579288]
[1725288529021,0.269808,58890.0,58889.0,0.01579288]
[1725288531258,0.1,58890.0,58889.0,0.01579288]
[1725288531471,0.269808,58890.0,58889.0,0.01579288]
[1725288531891,0.609424,58890.0,58889.0,0.01579288]
[1725288532139,0.609424,58890.0,58889.0,0.009]
[1725288532368,0.94904,58890.0,58889.0,0.009]
[1725288533289,1.288656,58890.0,58889.0,0.009]
[1725288534404,1.43950093,58890.0,58889.0,0.009]
[1725288534611,1.51890093,58890.0,58889.0,0.009]
[1725288534828,1.368056,58890.0,58889.0,0.009]
[1725288536259,1.288656,58890.0,58889.0,0.009]
[1725288536467,0.1,58890.0,58889.0,0.82730022]
[1725288536702,0.1,58890.0,58889.0,1.51501348]
[1725288536920,0.1,58890.0,58889.0,1.88452302]
[1725288537132,0.1,58890.0,58889.0,1.88652302]
[1725288537345,0.1,58890.0,58889.0,1.88452302]
[1725288537803,0.1,58890.0,58889.0,1.87552302]
[1725288538020,0.1,58890.0,58889.0,1.93763869]
[1725288538484,0.1,58890.0,58889.0,1.92363869]
[1725288538694,0.1,58890.0,58889.0,1.93763869]
[1725288540132,0.1,58890.0,58889.0,1.56116454]
[1725288540342,0.1,58890.0,58889.0,1.57516454]
[1725288541285,0.1,58890.0,58889.0,1.56116454]
[1725288541509,0.1,58890.0,58889.0,1.57516454]
[1725288541736,0.1,58890.0,58889.0,1.56116454]
[1725288543318,0.1,58890.0,58889.0,1.57516454]
[1725288543759,0.1,58890.0,58889.0,1.56116454]
[1725288544004,0.1,58890.0,58889.0,2.01464582]
[1725288544217,0.1,58890.0,58889.0,2.02364582]
[1725288544658,0.1,58890.0,58889.0,2.03764582]
[1725288544916,0.1,58890.0,58889.0,2.03564582]
[1725288545148,0.1,58890.0,58889.0,2.03764582]
[1725288545584,0.1,58890.0,58889.0,2.97692871]
[1725288545801,0.1,58890.0,58889.0,3.00692871]
[1725288546020,0.1,58890.0,58889.0,3.53551148]
[1725288546236,0.1,58890.0,58889.0,3.59788284]
[1725288546448,0.1,58890.0,58889.0,3.54802928]
[1725288546686,0.1,58890.0,58889.0,3.62080962]
[1725288547035,0.0004,58919.0,58915.0,0.169734]
[1725288547166,0.170125,58919.0,58915.0,0.169734]
[1725288547397,0.170125,58919.0,58914.0,0.339477]
[1725288547398,0.0004,58919.0,58914.0,0.339477]
[1725288547650,0.0004,58919.0,58911.0,0.339489]
[1725288547651,0.0004,58919.0,58916.0,0.00682849]
[1725288547906,0.169733,58916.0,58915.0,0.00682969]
[1725288548121,0.588668,58908.0,58907.0,0.04950617]
[1725288548336,0.588668,58908.0,58899.0,0.50540786]
[1725288548337,0.16977,58904.0,58899.0,0.50540786]
[1725288548579,0.24128289,58903.0,58896.0,0.04910659]
[1725288548848,0.509362,58897.0,58896.0,0.04910659]
[1725288549100,0.339596,58894.0,58884.0,0.4245]
[1725288549332,0.169806,58891.0,58884.0,0.4245]
[1725288549552,0.169806,58891.0,58884.0,0.6434083]
[1725288549767,0.169805,58891.0,58884.0,0.6434083]
[1725288549994,0.169807,58891.0,58884.0,0.6434083]
[1725288550240,0.169805,58891.0,58885.0,0.169821]
[1725288550460,0.339563,58900.0,58885.0,0.169821]
[1725288550461,0.2698,58893.0,58887.0,0.169815]
[1725288550730,0.2698,58893.0,58886.0,0.169819]
[1725288550913,0.1,58893.0,58888.0,0.169813]
[1725288551136,0.1,58893.0,58892.0,0.169802]
[1725288551612,0.1,58893.0,58892.0,0.509406]
[1725288553390,0.1,58893.0,58892.0,0.517406]
[1725288553818,0.1,58893.0,58892.0,0.509406]
[1725288554039,0.1,58893.0,58892.0,0.521406]
[1725288554792,0.269799,58893.0,58892.0,0.012]
[1725288555009,1.059695,58893.0,58892.0,0.012]
[1725288555908,1.399293,58893.0,58892.0,0.012]
[1725288556843,1.6228623,58893.0,58892.0,0.012]
[1725288557529,1.474993,58893.0,58892.0,0.012]
[1725288557769,0.169837,58880.0,58876.0,0.21967169]
[1725288557985,0.339666,58882.0,58876.0,0.04982469]
[1725288558223,0.2864,58893.0,58876.0,0.1]
[1725288558442,0.169844,58878.0,58875.0,0.1]
[1725288558667,0.339643,58886.0,58875.0,0.1]
[1725288558876,0.169842,58879.0,58876.0,0.00689555]
[1725288559120,0.169836,58880.0,58876.0,0.27674355]
[1725288559778,0.339658,58883.0,58876.0,0.27674355]
[1725288559779,0.169839,58879.0,58876.0,0.27674355]
[1725288559985,0.169839,58879.0,58876.0,0.10689555]
[1725288560221,0.169845,58877.0,58876.0,0.00689555]
[1725288560467,0.509536,58877.0,58876.0,0.01989555]
[1725288560694,0.509536,58877.0,58876.0,0.00689555]
[1725288561152,0.339676,58880.0,58876.0,0.009]
[1725288561371,0.339647,58885.0,58876.0,0.01587427]
[1725288561587,0.339677,58880.0,58876.0,0.00687427]
[1725288561820,0.16984,58879.0,58876.0,0.01387427]
[1725288562277,0.339677,58880.0,58876.0,0.01387427]
[1725288562559,0.169838,58880.0,58876.0,0.18372127]
[1725288562794,0.16984,58879.0,58876.0,0.18372127]
[1725288563051,0.169834,58881.0,58877.0,0.169844]
[1725288563280,0.169835,58881.0,58877.0,0.17671707]
[1725288563527,0.169832,58882.0,58878.0,0.169842]
[1725288564012,0.169832,58882.0,58879.0,0.00687067]
[1725288564250,0.169834,58881.0,58879.0,0.00687067]
[1725288564739,0.169836,58880.0,58879.0,0.00687067]
[1725288564986,0.509509,58880.0,58879.0,0.00687067]
[1725288565225,0.509509,58880.0,58876.0,0.004]
[1725288565226,0.169845,58877.0,58876.0,0.004]
[1725288565466,0.169845,58877.0,58872.0,0.609576]
[1725288565467,0.16985,58876.0,58872.0,0.269857]
[1725288565713,0.169853,58875.0,58872.0,0.1]
[1725288565953,0.169855,58874.0,58872.0,0.1]
[1725288567168,0.1205,58886.0,58872.0,0.269859]
[1725288567410,0.1205,58886.0,58879.0,0.004]
[1725288567648,0.1205,58886.0,58872.0,0.269859]
[1725288567887,0.1205,58886.0,58872.0,0.1]
[1725288568098,0.1205,58886.0,58873.0,0.169856]
[1725288568338,0.1205,58886.0,58873.0,0.154856]
[1725288568585,0.290322,58886.0,58872.0,0.1]
[1725288568837,0.290322,58886.0,58871.0,0.1474]
[1725288568838,0.169826,58884.0,58871.0,0.1474]
[1725288569076,0.36301262,58885.0,58871.0,0.1474]
[1725288569310,0.36301262,58885.0,58871.0,0.16986]